[Event "*** Titled Tuesday Blitz AM"]
[Site "Chess.com"]
[Date "2020.01.07"]
[Round "6"]
[White "JSPrepz"]
[Black "SlavenPastar"]
[Result "1-0"]
[WhiteElo "2797"]
[BlackElo "2547"]
[TimeControl "180+2"]
[EndTime "10:16:41 PST"]
[Termination "JSPrepz won by resignation"]

1. e4 {[%clk 0:03:01.9]} 1... e5 {[%clk 0:03:00.8]} 2. Nf3 {[%clk 0:03:02.7]}
2... Nc6 {[%clk 0:03:02.3]} 3. Nc3 {[%clk 0:03:04.1]} 3... Nf6 {[%clk
0:03:00.5]} 4. a3 {[%clk 0:03:02.8]} 4... Bc5 {[%clk 0:02:55.1]} 5. Nxe5 {[%clk
0:03:01.5]} 5... Nxe5 {[%clk 0:02:47]} 6. d4 {[%clk 0:03:00.8]} 6... Bd6 {[%clk
0:02:48.2]} 7. f4 {[%clk 0:02:58.9]} 7... Ng6 {[%clk 0:02:41.1]} 8. e5 {[%clk
0:02:59.2]} 8... Be7 {[%clk 0:02:42.1]} 9. f5 {[%clk 0:02:57]} 9... Nxe5 {[%clk
0:02:25.8]} 10. dxe5 {[%clk 0:02:57.9]} 10... Ng8 {[%clk 0:02:24.3]} 11. Bc4
{[%clk 0:02:47.4]} 11... d6 {[%clk 0:02:19.3]} 12. Qd5 {[%clk 0:02:45.8]} 12...
Bh4+ {[%clk 0:01:17.1]} 13. g3 {[%clk 0:02:46.1]} 13... Qe7 {[%clk 0:01:06.4]}
14. gxh4 {[%clk 0:02:42]} 14... Qxh4+ {[%clk 0:01:07]} 15. Kd1 {[%clk
0:02:40.5]} 15... Be6 {[%clk 0:00:37.3]} 16. fxe6 {[%clk 0:02:38.6]} 16... O-O-O
{[%clk 0:00:38.4]} 17. exf7 {[%clk 0:01:56.4]} 17... dxe5 {[%clk 0:00:22]} 18.
Bd2 {[%clk 0:01:55.6]} 18... Nf6 {[%clk 0:00:17.3]} 19. Qe6+ {[%clk 0:01:56.2]}
19... Kb8 {[%clk 0:00:18.8]} 20. Kc1 {[%clk 0:01:54.8]} 20... Qf2 {[%clk
0:00:07.8]} 21. Rd1 {[%clk 0:01:53.1]} 21... Rd6 {[%clk 0:00:06]} 22. Qe7 {[%clk
0:01:50.7]} 22... Ng4 {[%clk 0:00:04.9]} 23. Bg5 {[%clk 0:01:42.2]} 23... Rxd1+
{[%clk 0:00:05.1]} 24. Nxd1 {[%clk 0:01:44.1]} 24... Qf1 {[%clk 0:00:03.2]} 25.
Bxf1 {[%clk 0:01:43.8]} 1-0

[Event "*** Titled Tuesday Blitz AM"]
[Site "Chess.com"]
[Date "2020.01.07"]
[Round "6"]
[White "hazy13"]
[Black "Quiet_Desperation"]
[Result "0-1"]
[WhiteElo "2217"]
[BlackElo "2419"]
[TimeControl "180+2"]
[EndTime "10:16:46 PST"]
[Termination "Quiet_Desperation won by resignation"]

1. d4 {[%clk 0:03:01.9]} 1... Nf6 {[%clk 0:03:00.9]} 2. c4 {[%clk 0:03:02.9]}
2... e6 {[%clk 0:03:02.6]} 3. g3 {[%clk 0:03:03.5]} 3... Bb4+ {[%clk 0:03:02.9]}
4. Bd2 {[%clk 0:03:04.2]} 4... a5 {[%clk 0:03:04.4]} 5. Bg2 {[%clk 0:03:04.9]}
5... O-O {[%clk 0:03:05.5]} 6. Nf3 {[%clk 0:03:06.1]} 6... d6 {[%clk 0:03:06.6]}
7. O-O {[%clk 0:03:07.3]} 7... Bxd2 {[%clk 0:03:07.2]} 8. Nbxd2 {[%clk
0:03:08.1]} 8... Nc6 {[%clk 0:03:08.6]} 9. a3 {[%clk 0:03:04.1]} 9... e5 {[%clk
0:03:09.7]} 10. d5 {[%clk 0:03:04]} 10... Nb8 {[%clk 0:03:08.9]} 11. e4 {[%clk
0:03:04.8]} 11... c6 {[%clk 0:03:06.6]} 12. Ne1 {[%clk 0:02:56.3]} 12... Na6
{[%clk 0:03:07.3]} 13. Nd3 {[%clk 0:02:56.9]} 13... cxd5 {[%clk 0:03:08.1]} 14.
cxd5 {[%clk 0:02:57.1]} 14... Bd7 {[%clk 0:03:09]} 15. Nc4 {[%clk 0:02:40.7]}
15... Bb5 {[%clk 0:03:06.3]} 16. Rc1 {[%clk 0:02:41.7]} 16... Rc8 {[%clk
0:03:05.6]} 17. Qb3 {[%clk 0:02:36.8]} 17... Bxc4 {[%clk 0:02:47.2]} 18. Rxc4
{[%clk 0:02:37.5]} 18... Rxc4 {[%clk 0:02:48.5]} 19. Qxc4 {[%clk 0:02:39.4]}
19... Qd7 {[%clk 0:02:48.2]} 20. Rc1 {[%clk 0:02:39]} 20... Ne8 {[%clk
0:02:36.1]} 21. b4 {[%clk 0:02:13]} 21... Nec7 {[%clk 0:02:33.2]} 22. bxa5
{[%clk 0:01:34.2]} 22... Nb5 {[%clk 0:02:31.8]} 23. a4 {[%clk 0:01:20.3]} 23...
Nd4 {[%clk 0:02:28]} 24. Bf1 {[%clk 0:00:58.3]} 24... f5 {[%clk 0:02:24]} 25.
exf5 {[%clk 0:00:21.5]} 25... Qxf5 {[%clk 0:02:19.3]} 26. h4 {[%clk 0:00:14.2]}
26... Nc5 {[%clk 0:02:14.8]} 27. f4 {[%clk 0:00:10.1]} 27... Nf3+ {[%clk
0:01:57.8]} 28. Kg2 {[%clk 0:00:09.3]} 28... Nd2 {[%clk 0:01:54.8]} 29. Qc2
{[%clk 0:00:09.7]} 29... Nxf1 {[%clk 0:01:54.5]} 30. Nxc5 {[%clk 0:00:09.5]}
30... Ne3+ {[%clk 0:01:55.3]} 0-1

[Event "*** Titled Tuesday Blitz AM"]
[Site "Chess.com"]
[Date "2020.01.07"]
[Round "6"]
[White "LogoCzar"]
[Black "Saloni1299"]
[Result "1-0"]
[WhiteElo "2397"]
[BlackElo "2075"]
[TimeControl "180+2"]
[EndTime "10:17:06 PST"]
[Termination "LogoCzar won by resignation"]

1. e4 {[%clk 0:03:01.9]} 1... e6 {[%clk 0:03:01]} 2. d4 {[%clk 0:03:02.6]} 2...
d5 {[%clk 0:03:02]} 3. Nc3 {[%clk 0:03:02.6]} 3... Bb4 {[%clk 0:03:01.9]} 4. e5
{[%clk 0:03:04]} 4... c5 {[%clk 0:03:02.8]} 5. a3 {[%clk 0:03:05.5]} 5... Bxc3+
{[%clk 0:03:03.8]} 6. bxc3 {[%clk 0:03:07.4]} 6... Ne7 {[%clk 0:03:04.1]} 7. Qg4
{[%clk 0:03:08.5]} 7... Qc7 {[%clk 0:03:02.3]} 8. Qxg7 {[%clk 0:03:08]} 8... Rg8
{[%clk 0:03:03.8]} 9. Qxh7 {[%clk 0:03:09.4]} 9... cxd4 {[%clk 0:03:05.3]} 10.
Qd3 {[%clk 0:03:10.7]} 10... Qxe5+ {[%clk 0:03:03.5]} 11. Ne2 {[%clk 0:03:10.2]}
11... dxc3 {[%clk 0:02:35.7]} 12. Qxc3 {[%clk 0:03:11.5]} 12... Qxc3+ {[%clk
0:02:30.3]} 13. Nxc3 {[%clk 0:03:12.7]} 13... Nbc6 {[%clk 0:02:31.8]} 14. Nb5
{[%clk 0:02:57.3]} 14... Kd7 {[%clk 0:02:18.8]} 15. Bb2 {[%clk 0:02:58]} 15...
a6 {[%clk 0:02:19.4]} 16. Nc3 {[%clk 0:02:57.5]} 16... Kc7 {[%clk 0:02:12.7]}
17. O-O-O {[%clk 0:02:55.5]} 17... Bd7 {[%clk 0:02:05.1]} 18. h4 {[%clk
0:02:55.1]} 18... d4 {[%clk 0:01:46.8]} 19. Ne4 {[%clk 0:02:52.3]} 19... e5
{[%clk 0:01:48.3]} 20. f4 {[%clk 0:02:47.2]} 20... Bf5 {[%clk 0:01:41.3]} 21.
Bd3 {[%clk 0:02:37.7]} 21... f6 {[%clk 0:01:27.6]} 22. Nxf6 {[%clk 0:02:35.9]}
22... Rxg2 {[%clk 0:01:15.5]} 23. Bxf5 {[%clk 0:02:30.7]} 23... Nxf5 {[%clk
0:01:17.4]} 24. fxe5 {[%clk 0:02:28.7]} 24... Nxe5 {[%clk 0:01:11.3]} 25. Bxd4
{[%clk 0:02:24.9]} 25... Nxd4 {[%clk 0:01:10.8]} 26. Rxd4 {[%clk 0:02:24.7]}
26... Rf8 {[%clk 0:01:09.6]} 27. Rf1 {[%clk 0:02:17.7]} 27... Kb8 {[%clk
0:00:44]} 28. Re4 {[%clk 0:02:13.6]} 28... Rg6 {[%clk 0:00:35.8]} 29. Rxe5
{[%clk 0:02:11.6]} 29... Rgxf6 {[%clk 0:00:36.8]} 30. Rxf6 {[%clk 0:02:12.3]}
30... Rxf6 {[%clk 0:00:38.3]} 31. Re3 {[%clk 0:02:04.5]} 31... Kc7 {[%clk
0:00:33.7]} 32. Kd2 {[%clk 0:02:02]} 32... Kd6 {[%clk 0:00:34.4]} 33. Rh3 {[%clk
0:02:02]} 33... Ke5 {[%clk 0:00:29.6]} 34. Ke3 {[%clk 0:02:03]} 34... Kf5 {[%clk
0:00:29]} 35. Rf3+ {[%clk 0:02:03.7]} 35... Kg6 {[%clk 0:00:23]} 36. Rxf6+
{[%clk 0:02:04.7]} 36... Kxf6 {[%clk 0:00:24.5]} 37. Kd4 {[%clk 0:02:06.2]}
37... Kg6 {[%clk 0:00:26.1]} 38. Kc5 {[%clk 0:02:07.7]} 38... Kh5 {[%clk
0:00:28]} 39. Kb6 {[%clk 0:02:09.2]} 39... Kxh4 {[%clk 0:00:28.8]} 40. Kxb7
{[%clk 0:02:10.7]} 1-0

[Event "*** Titled Tuesday Blitz AM"]
[Site "Chess.com"]
[Date "2020.01.07"]
[Round "6"]
[White "Anton_Demchenko"]
[Black "Snegokhod"]
[Result "1-0"]
[WhiteElo "2975"]
[BlackElo "2592"]
[TimeControl "180+2"]
[EndTime "10:17:16 PST"]
[Termination "Anton_Demchenko won by resignation"]

1. d4 {[%clk 0:03:01.9]} 1... Nf6 {[%clk 0:02:59.5]} 2. Nf3 {[%clk 0:03:02]}
2... g6 {[%clk 0:02:59.1]} 3. Bf4 {[%clk 0:03:02.7]} 3... Bg7 {[%clk 0:02:58.8]}
4. c3 {[%clk 0:03:04.2]} 4... O-O {[%clk 0:02:58.8]} 5. Nbd2 {[%clk 0:03:05.2]}
5... Nh5 {[%clk 0:02:58.1]} 6. Bg5 {[%clk 0:03:04.6]} 6... h6 {[%clk 0:02:56.7]}
7. Bh4 {[%clk 0:03:05.7]} 7... g5 {[%clk 0:02:56.6]} 8. Bg3 {[%clk 0:03:07.1]}
8... d6 {[%clk 0:02:56.3]} 9. e4 {[%clk 0:03:05.5]} 9... Nxg3 {[%clk 0:02:50.2]}
10. hxg3 {[%clk 0:03:06.1]} 10... c5 {[%clk 0:02:47.8]} 11. dxc5 {[%clk
0:03:06.5]} 11... Nc6 {[%clk 0:02:47.1]} 12. cxd6 {[%clk 0:03:02.4]} 12... exd6
{[%clk 0:02:46.9]} 13. Bc4 {[%clk 0:03:01]} 13... Bg4 {[%clk 0:02:43.7]} 14. O-O
{[%clk 0:02:56.2]} 14... Ne5 {[%clk 0:02:39.9]} 15. Be2 {[%clk 0:02:56.7]} 15...
Be6 {[%clk 0:02:28.5]} 16. Nd4 {[%clk 0:02:57]} 16... Bd7 {[%clk 0:02:24.4]} 17.
Nc4 {[%clk 0:02:51.4]} 17... Qe7 {[%clk 0:02:20.2]} 18. Ne3 {[%clk 0:02:51.6]}
18... Bh8 {[%clk 0:01:51.5]} 19. Nd5 {[%clk 0:02:46.5]} 19... Qd8 {[%clk
0:01:48.8]} 20. f4 {[%clk 0:02:45.5]} 20... gxf4 {[%clk 0:01:40.4]} 21. gxf4
{[%clk 0:02:46.3]} 21... Ng6 {[%clk 0:01:36]} 22. Bg4 {[%clk 0:02:40.7]} 22...
Bc6 {[%clk 0:01:32]} 23. Nf5 {[%clk 0:02:37.4]} 23... Re8 {[%clk 0:01:15.7]} 24.
Nxh6+ {[%clk 0:02:33.1]} 24... Kh7 {[%clk 0:01:16.6]} 25. Nxf7 {[%clk
0:02:33.7]} 25... Qh4 {[%clk 0:01:17.4]} 26. Bf5 {[%clk 0:02:27.1]} 26... Kg7
{[%clk 0:01:11.3]} 27. Nxd6 {[%clk 0:02:06.8]} 27... Rf8 {[%clk 0:01:07]} 28.
Rf3 {[%clk 0:01:49.9]} 28... Bxd5 {[%clk 0:00:32.8]} 29. Qxd5 {[%clk 0:01:49.9]}
29... Rad8 {[%clk 0:00:16.1]} 30. Qxb7+ {[%clk 0:01:46.2]} 30... Ne7 {[%clk
0:00:13.2]} 31. Rh3 {[%clk 0:01:38.7]} 1-0

[Event "*** Titled Tuesday Blitz AM"]
[Site "Chess.com"]
[Date "2020.01.07"]
[Round "6"]
[White "IMUltimateBeast"]
[Black "Generalas"]
[Result "1-0"]
[WhiteElo "2611"]
[BlackElo "2261"]
[TimeControl "180+2"]
[EndTime "10:17:35 PST"]
[Termination "IMUltimateBeast won by resignation"]

1. d4 {[%clk 0:03:00.7]} 1... Nf6 {[%clk 0:02:46.6]} 2. Bf4 {[%clk 0:02:59.7]}
2... g6 {[%clk 0:02:35.2]} 3. e3 {[%clk 0:03:01.2]} 3... Bg7 {[%clk 0:02:36.1]}
4. Nf3 {[%clk 0:03:02.6]} 4... O-O {[%clk 0:02:37.1]} 5. h3 {[%clk 0:03:02.1]}
5... d6 {[%clk 0:02:37.8]} 6. Be2 {[%clk 0:02:59]} 6... b6 {[%clk 0:02:38.9]} 7.
c4 {[%clk 0:03:00.1]} 7... Bb7 {[%clk 0:02:39.9]} 8. Nc3 {[%clk 0:03:01.7]} 8...
Nbd7 {[%clk 0:02:39.6]} 9. O-O {[%clk 0:02:49.7]} 9... Re8 {[%clk 0:02:36]} 10.
Qc2 {[%clk 0:02:45.6]} 10... e5 {[%clk 0:02:34.1]} 11. dxe5 {[%clk 0:02:46.1]}
11... dxe5 {[%clk 0:02:36]} 12. Bh2 {[%clk 0:02:45.8]} 12... Qe7 {[%clk
0:02:27.7]} 13. Rad1 {[%clk 0:02:43.9]} 13... a6 {[%clk 0:02:09.2]} 14. Rd2
{[%clk 0:02:42.2]} 14... h5 {[%clk 0:02:05.1]} 15. Rfd1 {[%clk 0:02:42.3]} 15...
e4 {[%clk 0:01:50]} 16. Nd4 {[%clk 0:02:41.8]} 16... Nc5 {[%clk 0:01:50.7]} 17.
a3 {[%clk 0:02:37.2]} 17... Rad8 {[%clk 0:01:21.2]} 18. b4 {[%clk 0:02:33.8]}
18... Nd3 {[%clk 0:01:21]} 19. Bxd3 {[%clk 0:01:57.6]} 19... exd3 {[%clk
0:01:22.9]} 20. Rxd3 {[%clk 0:01:58.2]} 20... Ne4 {[%clk 0:01:22.3]} 21. Nd5
{[%clk 0:01:27.1]} 21... Qh4 {[%clk 0:00:47.9]} 22. Nf3 {[%clk 0:00:55.8]} 22...
Qxf2+ {[%clk 0:00:18.6]} 23. Qxf2 {[%clk 0:00:54.6]} 23... Nxf2 {[%clk
0:00:20.5]} 24. Kxf2 {[%clk 0:00:55.5]} 24... c6 {[%clk 0:00:17.8]} 25. Nxb6
{[%clk 0:00:53.1]} 25... Rxd3 {[%clk 0:00:18]} 26. Rxd3 {[%clk 0:00:54]} 26...
Bh6 {[%clk 0:00:18.6]} 27. c5 {[%clk 0:00:47.8]} 1-0

[Event "*** Titled Tuesday Blitz AM"]
[Site "Chess.com"]
[Date "2020.01.07"]
[Round "6"]
[White "XxPetroffsxX"]
[Black "arminmusovic"]
[Result "0-1"]
[WhiteElo "1984"]
[BlackElo "2496"]
[TimeControl "180+2"]
[EndTime "10:17:40 PST"]
[Termination "arminmusovic won by resignation"]

1. d4 {[%clk 0:03:01.9]} 1... d5 {[%clk 0:03:00.8]} 2. Nf3 {[%clk 0:03:02]} 2...
c5 {[%clk 0:03:02.1]} 3. e3 {[%clk 0:03:01.2]} 3... Nc6 {[%clk 0:03:03]} 4. b3
{[%clk 0:03:01.2]} 4... Bg4 {[%clk 0:03:03.1]} 5. Bb2 {[%clk 0:03:01.7]} 5... e6
{[%clk 0:03:04.6]} 6. Be2 {[%clk 0:03:02.3]} 6... Nf6 {[%clk 0:03:05.7]} 7. O-O
{[%clk 0:03:03]} 7... Bd6 {[%clk 0:03:06.5]} 8. Nbd2 {[%clk 0:03:01.7]} 8... O-O
{[%clk 0:03:07.4]} 9. Ne5 {[%clk 0:03:02.5]} 9... Bxe2 {[%clk 0:03:08]} 10. Qxe2
{[%clk 0:03:03.2]} 10... Nd7 {[%clk 0:03:07.1]} 11. f4 {[%clk 0:03:02.7]} 11...
f6 {[%clk 0:03:07.2]} 12. Nxc6 {[%clk 0:03:00.7]} 12... bxc6 {[%clk 0:03:08.3]}
13. c4 {[%clk 0:02:59.2]} 13... Qc7 {[%clk 0:03:05.3]} 14. cxd5 {[%clk
0:02:59.7]} 14... exd5 {[%clk 0:03:05.5]} 15. Rae1 {[%clk 0:02:49.7]} 15... Rae8
{[%clk 0:03:05.9]} 16. Qg4 {[%clk 0:02:49.3]} 16... cxd4 {[%clk 0:03:03.9]} 17.
exd4 {[%clk 0:02:48.5]} 17... f5 {[%clk 0:03:01.8]} 18. Qh3 {[%clk 0:02:33.9]}
18... Bb4 {[%clk 0:02:59.2]} 19. Bc3 {[%clk 0:02:25.9]} 19... Rxe1 {[%clk
0:02:27.7]} 20. Rxe1 {[%clk 0:02:25.8]} 20... Bxc3 {[%clk 0:02:28.5]} 21. Qxc3
{[%clk 0:02:25.3]} 21... Qxf4 {[%clk 0:02:30]} 22. Nf3 {[%clk 0:02:24.4]} 22...
Qd6 {[%clk 0:02:22.9]} 23. Ne5 {[%clk 0:02:12.2]} 23... Nxe5 {[%clk 0:02:15.7]}
24. Rxe5 {[%clk 0:02:10.1]} 24... f4 {[%clk 0:01:55.3]} 25. Qf3 {[%clk
0:02:06.6]} 25... Qb4 {[%clk 0:01:49.9]} 26. Qf2 {[%clk 0:01:44.1]} 26... Qc3
{[%clk 0:01:46.3]} 27. h4 {[%clk 0:01:39.8]} 27... f3 {[%clk 0:01:21.6]} 28. g3
{[%clk 0:01:33.4]} 28... h6 {[%clk 0:01:11.6]} 29. Kh2 {[%clk 0:01:30.8]} 29...
Qd3 {[%clk 0:01:03.6]} 30. Re6 {[%clk 0:01:13.5]} 30... Kh8 {[%clk 0:00:50.4]}
31. Rxc6 {[%clk 0:00:59.2]} 31... Re8 {[%clk 0:00:51.5]} 32. Rc2 {[%clk
0:00:42.3]} 32... Qxc2 {[%clk 0:00:52.4]} 33. Qxc2 {[%clk 0:00:38.5]} 33... Re2+
{[%clk 0:00:53.4]} 0-1

[Event "*** Titled Tuesday Blitz AM"]
[Site "Chess.com"]
[Date "2020.01.07"]
[Round "6"]
[White "RGSmaster"]
[Black "kkpanu9"]
[Result "0-1"]
[WhiteElo "2229"]
[BlackElo "2097"]
[TimeControl "180+2"]
[EndTime "10:17:47 PST"]
[Termination "kkpanu9 won by checkmate"]

1. d4 {[%clk 0:03:01.9]} 1... Nf6 {[%clk 0:02:59.2]} 2. Nf3 {[%clk 0:03:02]}
2... g6 {[%clk 0:02:57.4]} 3. h4 {[%clk 0:02:58.3]} 3... Bg7 {[%clk 0:02:56]} 4.
Nc3 {[%clk 0:02:52.5]} 4... d5 {[%clk 0:02:55.9]} 5. Bg5 {[%clk 0:02:52.2]} 5...
O-O {[%clk 0:02:54.9]} 6. Qd2 {[%clk 0:02:52.5]} 6... Ne4 {[%clk 0:02:53.3]} 7.
Qe3 {[%clk 0:02:31.1]} 7... Nxg5 {[%clk 0:02:51.9]} 8. hxg5 {[%clk 0:02:27.7]}
8... c5 {[%clk 0:02:40.4]} 9. O-O-O {[%clk 0:02:24.6]} 9... Nc6 {[%clk
0:02:20.3]} 10. dxc5 {[%clk 0:01:57.3]} 10... d4 {[%clk 0:02:10.4]} 11. Qf4
{[%clk 0:01:55.2]} 11... e5 {[%clk 0:02:08.4]} 12. Qh4 {[%clk 0:01:55.4]} 12...
Re8 {[%clk 0:02:09.2]} 13. Qxh7+ {[%clk 0:01:52.8]} 13... Kf8 {[%clk 0:02:10.4]}
14. Ne4 {[%clk 0:01:52.6]} 14... Bf5 {[%clk 0:01:57.7]} 15. Nd6 {[%clk
0:01:36.8]} 15... e4 {[%clk 0:01:49.3]} 16. Nh4 {[%clk 0:01:03.8]} 16... Qxg5+
{[%clk 0:01:47.8]} 17. Kb1 {[%clk 0:01:03.9]} 17... Be6 {[%clk 0:01:24.1]} 18.
Nxe8 {[%clk 0:00:39.5]} 18... Rxe8 {[%clk 0:01:22.5]} 19. g3 {[%clk 0:00:36.6]}
19... Qxc5 {[%clk 0:01:10.9]} 20. Nxg6+ {[%clk 0:00:23.5]} 20... fxg6 {[%clk
0:01:10.7]} 21. Qxg6 {[%clk 0:00:25.4]} 21... d3 {[%clk 0:00:52.3]} 22. exd3
{[%clk 0:00:17.9]} 22... Bxa2+ {[%clk 0:00:49.3]} 23. Kxa2 {[%clk 0:00:15.8]}
23... Nb4+ {[%clk 0:00:49]} 24. Kb3 {[%clk 0:00:15]} 24... Qxc2+ {[%clk
0:00:45.5]} 25. Kxb4 {[%clk 0:00:16.4]} 25... Qxb2+ {[%clk 0:00:43.7]} 26. Kc4
{[%clk 0:00:16.2]} 26... Qc3+ {[%clk 0:00:41.1]} 27. Kd5 {[%clk 0:00:17]} 27...
Qd4# {[%clk 0:00:40.5]} 0-1

[Event "*** Titled Tuesday Blitz AM"]
[Site "Chess.com"]
[Date "2020.01.07"]
[Round "6"]
[White "Iyael"]
[Black "goldenspine"]
[Result "1/2-1/2"]
[WhiteElo "2078"]
[BlackElo "2316"]
[TimeControl "180+2"]
[EndTime "10:17:49 PST"]
[Termination "Game drawn by repetition"]

1. e4 {[%clk 0:03:01.9]} 1... c6 {[%clk 0:03:00.8]} 2. d4 {[%clk 0:03:02.4]}
2... d5 {[%clk 0:03:01.9]} 3. Nc3 {[%clk 0:03:04]} 3... dxe4 {[%clk 0:03:02.4]}
4. Nxe4 {[%clk 0:03:05.5]} 4... Nd7 {[%clk 0:03:03.5]} 5. Ng5 {[%clk 0:03:06.1]}
5... e6 {[%clk 0:03:02.7]} 6. Bd3 {[%clk 0:03:04.5]} 6... Ngf6 {[%clk
0:03:02.2]} 7. N1f3 {[%clk 0:03:02.9]} 7... h6 {[%clk 0:02:46.4]} 8. Nxe6 {[%clk
0:03:03.4]} 8... fxe6 {[%clk 0:02:48.3]} 9. Bg6+ {[%clk 0:03:04.6]} 9... Ke7
{[%clk 0:02:49.7]} 10. O-O {[%clk 0:03:05.7]} 10... Qa5 {[%clk 0:02:09.1]} 11.
c4 {[%clk 0:03:00.9]} 11... Kd8 {[%clk 0:02:08.5]} 12. Bf4 {[%clk 0:02:52.9]}
12... Be7 {[%clk 0:02:01.5]} 13. Re1 {[%clk 0:02:52.3]} 13... Nf8 {[%clk
0:01:43]} 14. Bc2 {[%clk 0:02:52.3]} 14... Bd7 {[%clk 0:01:42]} 15. Ne5 {[%clk
0:02:52.4]} 15... Kc8 {[%clk 0:01:42.1]} 16. a3 {[%clk 0:02:49.7]} 16... g5
{[%clk 0:01:38]} 17. Bd2 {[%clk 0:02:46.4]} 17... Qb6 {[%clk 0:01:33.5]} 18. Bc3
{[%clk 0:02:46.1]} 18... Rg8 {[%clk 0:01:24.4]} 19. b4 {[%clk 0:02:46.2]} 19...
Be8 {[%clk 0:01:25]} 20. Rb1 {[%clk 0:02:37.3]} 20... Ng6 {[%clk 0:01:23.5]} 21.
Nd3 {[%clk 0:02:27.7]} 21... Nf4 {[%clk 0:01:21.2]} 22. Nxf4 {[%clk 0:02:23.9]}
22... gxf4 {[%clk 0:01:23.1]} 23. Rxe6 {[%clk 0:02:24.9]} 23... Qc7 {[%clk
0:01:04.3]} 24. d5 {[%clk 0:02:24.6]} 24... cxd5 {[%clk 0:00:38]} 25. Bxf6
{[%clk 0:02:20.6]} 25... Bxf6 {[%clk 0:00:39]} 26. Rxf6 {[%clk 0:02:21.9]} 26...
Qg7 {[%clk 0:00:40]} 27. Qf3 {[%clk 0:02:02.3]} 27... Qxf6 {[%clk 0:00:39.8]}
28. cxd5 {[%clk 0:02:03.6]} 28... b6 {[%clk 0:00:27.1]} 29. Rc1 {[%clk
0:02:04.4]} 29... Kb7 {[%clk 0:00:25.4]} 30. d6+ {[%clk 0:02:03.2]} 30... Bc6
{[%clk 0:00:26.2]} 31. Be4 {[%clk 0:02:04.2]} 31... Bxe4 {[%clk 0:00:13.7]} 32.
Qxe4+ {[%clk 0:02:05.3]} 32... Ka6 {[%clk 0:00:15.3]} 33. Qc4+ {[%clk 0:02:03]}
33... Kb7 {[%clk 0:00:11.3]} 34. Qc6+ {[%clk 0:02:03.1]} 34... Ka6 {[%clk
0:00:11.5]} 35. Qa4+ {[%clk 0:01:43]} 35... Kb7 {[%clk 0:00:12.6]} 36. Qc6+
{[%clk 0:01:35.5]} 36... Ka6 {[%clk 0:00:13.8]} 37. Qa4+ {[%clk 0:01:26.4]}
37... Kb7 {[%clk 0:00:15.2]} 38. Qd7+ {[%clk 0:01:24]} 38... Ka6 {[%clk
0:00:16.7]} 39. Qa4+ {[%clk 0:01:22.6]} 1/2-1/2

[Event "*** Titled Tuesday Blitz AM"]
[Site "Chess.com"]
[Date "2020.01.07"]
[Round "6"]
[White "garfield_pg"]
[Black "Sven_Tica"]
[Result "0-1"]
[WhiteElo "2377"]
[BlackElo "2657"]
[TimeControl "180+2"]
[EndTime "10:17:50 PST"]
[Termination "Sven_Tica won on time"]

1. e4 {[%clk 0:03:01.9]} 1... c5 {[%clk 0:03:01.1]} 2. Nf3 {[%clk 0:03:01.5]}
2... Nf6 {[%clk 0:03:02.5]} 3. e5 {[%clk 0:03:00.2]} 3... Nd5 {[%clk 0:03:04]}
4. g3 {[%clk 0:03:01.7]} 4... Nc6 {[%clk 0:03:04.2]} 5. Bg2 {[%clk 0:03:02.3]}
5... e6 {[%clk 0:03:04.5]} 6. O-O {[%clk 0:03:03.2]} 6... d6 {[%clk 0:03:06]} 7.
exd6 {[%clk 0:03:03.9]} 7... Bxd6 {[%clk 0:03:07.9]} 8. d4 {[%clk 0:03:03.2]}
8... O-O {[%clk 0:03:06.7]} 9. c4 {[%clk 0:02:57.6]} 9... Nb6 {[%clk 0:03:07.9]}
10. dxc5 {[%clk 0:02:27.9]} 10... Bxc5 {[%clk 0:03:06.8]} 11. Qe2 {[%clk
0:02:25.3]} 11... e5 {[%clk 0:02:37.5]} 12. b3 {[%clk 0:02:03.8]} 12... Qe7
{[%clk 0:02:34.7]} 13. Bb2 {[%clk 0:02:02.7]} 13... Re8 {[%clk 0:02:21.9]} 14.
a3 {[%clk 0:01:28.6]} 14... a5 {[%clk 0:02:20.9]} 15. Re1 {[%clk 0:00:54.7]}
15... Bg4 {[%clk 0:02:12.9]} 16. h3 {[%clk 0:00:55.7]} 16... Nd4 {[%clk
0:02:09.5]} 17. Bxd4 {[%clk 0:00:34.2]} 17... Bxd4 {[%clk 0:02:10.6]} 18. Ra2
{[%clk 0:00:27.9]} 18... Bxf3 {[%clk 0:02:11.5]} 19. Qxf3 {[%clk 0:00:27.3]}
19... Rab8 {[%clk 0:02:09.3]} 20. Rae2 {[%clk 0:00:27.4]} 20... Nd7 {[%clk
0:02:07.5]} 21. Nc3 {[%clk 0:00:28.4]} 21... Nc5 {[%clk 0:02:07.9]} 22. Nd5
{[%clk 0:00:28.7]} 22... Qd6 {[%clk 0:02:08.6]} 23. b4 {[%clk 0:00:29.6]} 23...
axb4 {[%clk 0:01:53.3]} 24. axb4 {[%clk 0:00:31.5]} 24... Na6 {[%clk 0:01:52.9]}
25. c5 {[%clk 0:00:32.7]} 25... Qd7 {[%clk 0:01:42.4]} 26. Nb6 {[%clk
0:00:27.3]} 26... Qb5 {[%clk 0:01:40.4]} 27. Qg4 {[%clk 0:00:13.3]} 27... Rbd8
{[%clk 0:01:29.2]} 28. Bxb7 {[%clk 0:00:12.1]} 28... Nxb4 {[%clk 0:01:30.5]} 29.
Be4 {[%clk 0:00:04.5]} 29... Qxc5 {[%clk 0:01:25.2]} 30. Na4 {[%clk 0:00:05.2]}
30... Qb5 {[%clk 0:01:22.4]} 31. Nb2 {[%clk 0:00:03.3]} 31... Nd5 {[%clk
0:01:22]} 32. Nd3 {[%clk 0:00:03.4]} 32... Nc3 {[%clk 0:01:21.7]} 33. Rb2 {[%clk
0:00:03.6]} 33... Qa6 {[%clk 0:01:21.4]} 0-1